fUST/lending_fUST_20250108
["ID","MTS","AMOUNT","RATE_DAILY","PERIOD"]
[348102877,1736314028202,-202.193714,0.00020293,2]
[348102878,1736314028231,-1500.0,0.000209,2]
[348102879,1736314028254,-154.88735611,0.00020908,2]
[348102880,1736314028276,-300.0,0.00021006,2]
[348102881,1736314028298,-500.0,0.00021007,3]
[348102882,1736314028320,-500.0,0.00021007,3]
[348102883,1736314028341,-500.0,0.00021007,3]
[348102884,1736314028363,-593.0,0.00021007,3]
[348102885,1736314028386,-500.0,0.00021007,3]
[348102886,1736314028412,-475.98945901,0.00021007,3]
[348102889,1736314146109,-466.28333623,0.00016,2]
[348102890,1736314146131,-500.0,0.0001778,2]
[348102891,1736314146152,-470.30825104,0.000187,2]
[348102892,1736314151094,-31.91814682,0.000187,2]
[348102893,1736314151116,-202.1937155,0.00019457,2]
[348102894,1736314151136,-500.0,0.00019972,2]
[348102895,1736314151157,-300.0,0.00019999,2]
[348102896,1736314151176,-10915.59497695,0.0002,2]
[348102897,1736314151197,-1009.49161293,0.0002,2]
[348102898,1736314152279,-14730.72728856,0.0002,2]
[348102899,1736314152325,-353.79314662,0.0002,2]
[348102900,1736314152352,-4078.99155027,0.0002,2]
[348102901,1736314152383,-5178.49243311,0.0002,2]
[348102902,1736314152413,-167.593347,0.00020858,2]
[348102903,1736314152442,-10000.0,0.00021,5]
[348102904,1736314152471,-263.40539378,0.00021,2]
[348102905,1736314152501,-4796.27840998,0.00021,2]
[348102906,1736314167174,-5544.12259551,0.00021,2]
[348102907,1736314167358,-237.38696629,0.00021,2]
[348102908,1736314167387,-179556.22467375,0.00021,2]
[348102909,1736314167411,-3152.7374579,0.00021,2]
[348102910,1736314167435,-500.0,0.00021006,3]
[348102911,1736314167460,-500.0,0.00021006,3]
[348102912,1736314167484,-500.0,0.00021006,3]
[348102913,1736314167508,-500.0,0.00021006,3]
[348102914,1736314167537,-24.01054099,0.00021007,3]
[348102915,1736314167561,-500.0,0.00021007,3]
[348102916,1736314167589,-530.32049551,0.00021007,3]
[348102917,1736314167612,-500.0,0.00021007,3]
[348102918,1736314167638,-500.0,0.00021007,3]
[348102919,1736314167662,-500.0,0.00021007,3]
[348102920,1736314167685,-500.0,0.00021007,3]
[348102921,1736314167707,-500.0,0.00021007,3]
[348102922,1736314167729,-500.0,0.00021007,3]
[348102923,1736314167751,-500.0,0.00021007,3]
[348102924,1736314167774,-500.0,0.00021007,3]
[348102925,1736314167796,-500.0,0.00021007,3]
[348102926,1736314167817,-500.0,0.00021007,3]
[348102927,1736314167839,-500.0,0.00021007,3]
[348102928,1736314167861,-500.0,0.00021007,3]
[348102929,1736314167883,-500.0,0.00021007,3]
[348102930,1736314167906,-500.0,0.00021007,3]
[348102931,1736314167929,-500.0,0.00021007,3]
[348102932,1736314167951,-500.0,0.00021007,3]
[348102933,1736314167974,-500.0,0.00021007,3]
[348102934,1736314167997,-500.0,0.00021007,3]
[348102935,1736314168019,-505.21051692,0.00021007,3]
[348102936,1736314168041,-500.0,0.00021007,3]
[348102937,1736314168062,-500.0,0.00021007,3]
[348102938,1736314168085,-500.0,0.00021007,3]
[348102939,1736314168107,-500.0,0.00021007,3]
[348102940,1736314168130,-500.0,0.00021007,3]
[348102941,1736314168152,-500.0,0.00021007,2]
[348102942,1736314168178,-500.0,0.00021007,3]
[348102943,1736314168200,-500.0,0.00021007,3]
[348102944,1736314168223,-500.0,0.00021007,3]
[348102945,1736314168245,-500.0,0.00021007,3]
[348102946,1736314168268,-505.54059457,0.00021007,3]
[348102947,1736314168298,-500.0,0.00021007,3]
[348102948,1736314168320,-500.0,0.00021007,3]
[348102949,1736314168343,-500.0,0.00021007,3]
[348102950,1736314168366,-500.0,0.00021007,3]
[348102951,1736314168388,-500.0,0.00021007,3]
[348102952,1736314168412,-500.0,0.00021007,3]
[348102953,1736314168434,-500.0,0.00021007,3]
[348102954,1736314168457,-4833.99,0.00021007,3]
[348102955,1736314168479,-500.0,0.00021007,3]
[348102956,1736314168500,-500.0,0.00021007,3]
[348102957,1736314168521,-500.0,0.00021007,3]
[348102958,1736314168542,-500.0,0.00021007,3]
[348102959,1736314168564,-500.0,0.00021007,3]
[348102960,1736314168588,-500.0,0.00021007,3]
[348102961,1736314168609,-500.0,0.00021007,3]
[348102962,1736314168631,-500.0,0.00021007,3]
[348102963,1736314168652,-500.0,0.00021007,3]
[348102964,1736314168674,-500.0,0.00021007,3]
[348102965,1736314168696,-500.0,0.00021007,3]
[348102966,1736314168718,-500.0,0.00021007,3]
[348102967,1736314168738,-500.0,0.00021007,3]
[348102968,1736314168759,-500.0,0.00021007,3]
[348102969,1736314168780,-500.0,0.00021007,3]
[348102970,1736314168801,-500.0,0.00021007,3]
[348102971,1736314168822,-500.0,0.00021007,3]
[348102972,1736314168842,-500.0,0.00021007,3]
[348102973,1736314168863,-500.0,0.00021007,3]
[348102974,1736314168885,-500.0,0.00021007,3]
[348102975,1736314168906,-500.0,0.00021007,3]
[348102976,1736314168929,-500.0,0.00021007,3]
[348102977,1736314168949,-156.39,0.00021008,2]
[348102978,1736314168969,-500.0,0.00021008,3]
[348102979,1736314168990,-500.0,0.00021008,3]
[348102980,1736314169010,-500.0,0.00021008,3]
[348102981,1736314169030,-500.0,0.00021008,3]
[348102982,1736314169050,-500.0,0.00021008,3]
[348102983,1736314169071,-500.0,0.00021008,3]
[348102984,1736314169090,-500.0,0.00021008,3]
[348102985,1736314169111,-500.0,0.00021008,3]
[348102986,1736314169131,-500.0,0.00021008,3]
[348102987,1736314169151,-150.100001,0.00021008,2]
[348102988,1736314169171,-500.0,0.00021008,3]
[348102989,1736314169192,-500.0,0.00021008,3]
[348102990,1736314169213,-500.0,0.00021008,3]
[348102991,1736314169234,-500.0,0.00021008,3]
[348102992,1736314169255,-500.0,0.00021008,3]
[348102993,1736314169276,-500.0,0.00021008,3]
[348102994,1736314169300,-500.0,0.00021008,3]
[348102995,1736314169320,-500.0,0.00021008,3]
[348102996,1736314169341,-500.0,0.00021008,3]
[348102997,1736314169361,-500.0,0.00021008,3]
[348102998,1736314169382,-500.0,0.00021008,3]
[348102999,1736314169404,-500.0,0.00021009,3]
[348103000,1736314169425,-500.0,0.00021009,3]
[348103001,1736314169446,-500.0,0.00021009,3]
[348103002,1736314169467,-500.0,0.00021009,3]
[348103003,1736314169488,-219.033,0.00021028,2]
[348103004,1736314169510,-500.0,0.0002128,3]
[348103005,1736314169532,-500.0,0.0002128,3]
[348103006,1736314169553,-500.0,0.0002128,3]
[348103007,1736314169577,-500.0,0.00021281,3]
[348103008,1736314169598,-500.0,0.00021281,3]
[348103009,1736314169619,-500.0,0.00021281,3]
[348103010,1736314169640,-500.0,0.00021281,3]
[348103011,1736314169662,-566.44,0.00021281,3]
[348103012,1736314169683,-533.22,0.00021281,3]
[348103013,1736314169704,-624.4,0.00021281,3]
[348103014,1736314169724,-500.0,0.00021281,3]
[348103015,1736314169744,-500.0,0.00021281,3]
[348103016,1736314169765,-500.0,0.00021281,3]
[348103017,1736314169785,-500.08080815,0.00021281,3]
[348103018,1736314169807,-500.0,0.00021281,3]
[348103019,1736314169828,-500.0,0.00021281,3]
[348103020,1736314169849,-500.0,0.00021281,3]
[348103021,1736314169870,-500.0,0.00021281,3]
[348103022,1736314169891,-500.0,0.00021281,3]
[348103023,1736314169911,-500.0,0.00021281,3]
[348103024,1736314169931,-500.0,0.00021281,3]
[348103025,1736314169952,-500.0,0.00021281,3]
[348103026,1736314169973,-500.0,0.00021281,3]
[348103027,1736314169994,-500.0,0.00021281,3]
[348103028,1736314170015,-541.36,0.00021281,3]
[348103029,1736314170036,-500.0,0.00021281,3]
[348103030,1736314170057,-500.0,0.00021281,3]
[348103031,1736314170078,-500.0,0.00021281,3]
[348103032,1736314170099,-500.0,0.00021281,3]
[348103033,1736314170120,-549.82930406,0.00021281,2]
[348103034,1736314170142,-500.0,0.00021281,3]
[348103035,1736314170163,-500.0,0.00021281,3]
[348103036,1736314170278,-500.0,0.00021281,3]
[348103037,1736314170302,-500.0,0.00021281,3]
[348103038,1736314170324,-500.0,0.00021281,3]
[348103039,1736314170345,-382.26,0.00021281,3]
[348103040,1736314170366,-507.64,0.00021281,3]
[348103041,1736314170388,-500.0,0.00021281,3]
[348103042,1736314170411,-4833.99,0.00021281,3]
[348103043,1736314170434,-500.0,0.00021281,3]
[348103044,1736314170456,-597.34,0.00021281,3]
[348103045,1736314170478,-500.0,0.00021281,3]
[348103046,1736314170499,-508.48,0.00021281,3]
[348103047,1736314170520,-500.0,0.00021281,3]
[348103048,1736314170550,-500.0,0.00021281,3]
[348103049,1736314170574,-500.0,0.00021281,3]
[348103050,1736314170598,-500.0,0.00021281,3]
[348103051,1736314170622,-640.86,0.00021281,3]
[348103052,1736314170644,-500.0,0.00021281,3]
[348103053,1736314170668,-500.0,0.00021281,3]
[348103054,1736314170690,-500.0,0.00021281,3]
[348103055,1736314170711,-249.81704654,0.00021281,3]
[348103056,1736314170731,-320.74414507,0.00021281,3]
[348103057,1736314170752,-500.0,0.00021281,3]
[348103058,1736314170772,-500.78395808,0.00021281,3]
[348103059,1736314170793,-500.0,0.00021281,3]
[348103060,1736314170815,-500.0,0.00021281,3]
[348103061,1736314170836,-500.0,0.00021281,3]
[348103062,1736314170858,-500.0,0.00021281,3]
[348103063,1736314170878,-500.0,0.00021282,3]
[348103064,1736314170899,-500.0,0.00021282,3]
[348103065,1736314170919,-500.0,0.00021282,3]
[348103066,1736314170940,-311.76118236,0.00021282,3]
[348103067,1736314170961,-576.7,0.00021282,3]
[348103068,1736314170982,-500.0,0.00021282,3]
[348103069,1736314171004,-500.0,0.00021282,3]
[348103070,1736314171026,-500.0,0.00021282,3]
[348103071,1736314171046,-500.0,0.00021282,3]
[348103072,1736314171067,-500.77009266,0.00021282,3]
[348103073,1736314171089,-500.0,0.00021282,3]
[348103074,1736314171111,-500.0,0.00021282,3]
[348103075,1736314171132,-500.0,0.00021282,3]
[348103076,1736314171152,-500.0,0.00021282,3]
[348103077,1736314171172,-500.0,0.00021282,3]
[348103078,1736314171193,-500.0,0.00021282,3]
[348103079,1736314171213,-500.0,0.00021282,3]
[348103080,1736314171235,-1218.49,0.00021282,3]
[348103081,1736314171257,-500.0,0.00021283,3]
[348103082,1736314171279,-500.0,0.00021283,3]
[348103083,1736314171301,-500.0,0.00021283,3]
[348103084,1736314171321,-727.21356508,0.00021388,2]
[348103085,1736314171342,-4346.03326775,0.000215,2]
[348103086,1736314171364,-500.0,0.00021554,3]
[348103087,1736314171387,-500.0,0.00021554,3]
[348103088,1736314171408,-500.0,0.00021555,3]
[348103089,1736314171431,-554.74,0.00021555,3]
[348103090,1736314171453,-442.7,0.00021555,3]
[348103091,1736314171474,-209.68,0.00021555,3]
[348103092,1736314171496,-221.06,0.00021555,3]
[348103093,1736314171518,-500.0,0.00021555,3]
[348103094,1736314171539,-620.02,0.00021555,3]
[348103095,1736314171561,-508.74,0.00021555,3]
[348103096,1736314171587,-500.0,0.00021555,3]
[348103097,1736314171608,-196.06,0.00021555,3]
[348103098,1736314171631,-4833.99,0.00021555,3]
[348103099,1736314171653,-500.0,0.00021555,3]
[348103100,1736314171676,-397.04,0.00021555,3]
[348103101,1736314171698,-500.0,0.00021555,3]
[348103102,1736314171719,-500.0,0.00021555,3]
[348103103,1736314171743,-500.0,0.00021555,3]
[348103104,1736314171765,-166.47935291,0.00021555,3]
[348103105,1736314222654,165.065838,0.00013973,2]
[348103199,1736314241511,-500.0,0.00018876,2]
[348103200,1736314241521,-500.0,0.00021006,3]
[348103201,1736314241531,-500.0,0.00021007,3]
[348103202,1736314241542,-500.0,0.00021007,3]
[348103203,1736314241552,-500.0,0.00021007,3]
[348103204,1736314241563,-500.0,0.00021068,2]
[348103205,1736314241575,-500.0,0.0002128,3]
[348103206,1736314241585,-206.92,0.00021281,3]
[348103207,1736314241600,-500.0,0.00021281,3]
[348103208,1736314241612,-500.0,0.00021281,3]
[348103209,1736314241623,-300.0,0.00021554,2]
[348103210,1736314241634,-500.0,0.00021554,3]
[348103211,1736314241645,-333.52064709,0.00021555,3]
[348103212,1736314241655,-500.0,0.00021555,3]
[348103213,1736314241665,-500.0,0.00021555,3]
[348103214,1736314241677,-500.0,0.00021555,3]
[348103215,1736314241686,-500.0,0.00021555,3]
[348103216,1736314241695,-500.0,0.00021555,3]
[348103217,1736314241705,-500.0,0.00021555,3]
[348103218,1736314241714,-500.0,0.00021556,3]
[348103219,1736314241723,-500.0,0.00021556,3]
[348103220,1736314241732,-500.0,0.00021556,3]
[348103221,1736314241742,-500.0,0.00021556,3]
[348103222,1736314241752,-511.48,0.00021556,3]
[348103223,1736314241761,-500.0,0.00021556,3]
[348103224,1736314241771,-1218.49,0.00021556,3]
[348103225,1736314241781,-500.0,0.00021557,3]
[348103226,1736314241790,-500.0,0.00021557,3]
[348103227,1736314241799,-500.0,0.00021828,3]
[348103228,1736314241809,-500.0,0.00021828,3]
[348103229,1736314241820,-500.0,0.00021828,3]
[348103230,1736314241829,-600.94,0.00021829,3]
[348103231,1736314241839,-3123.64935291,0.00021829,3]
[348103259,1736314246199,-1710.34064709,0.00021829,3]
[348103260,1736314246208,-500.0,0.00021829,3]
[348103261,1736314246217,-500.0,0.00021829,3]
[348103262,1736314246227,-500.0,0.00021829,3]
[348103263,1736314246236,-500.0,0.00021829,3]
[348103264,1736314246244,-500.0,0.00021829,3]
[348103265,1736314246253,-441.78,0.00021829,3]
[348103266,1736314246262,-439.13,0.00021829,3]
[348103267,1736314246271,-500.0,0.00021829,3]
[348103268,1736314246279,-500.0,0.00021829,3]
[348103269,1736314246288,-370.9,0.00021829,3]
[348103270,1736314246297,-500.0,0.00021829,3]
[348103271,1736314246307,-500.0,0.0002183,3]
[348103272,1736314246314,-152.93413253,0.0002183,3]
[348103273,1736314246322,-1218.49,0.0002183,3]
[348103274,1736314246328,-500.0,0.00021831,3]
[348103275,1736314246336,-500.0,0.00021831,3]
[348103276,1736314246343,-153.0,0.00021838,2]
[348103277,1736314246349,-153.0,0.00021843,2]
[348103278,1736314246356,-153.0,0.00021848,2]
[348103279,1736314246363,-500.0,0.0002185,3]
[348103280,1736314246370,-500.0,0.0002185,3]
[348103281,1736314246377,-500.0,0.0002185,3]
[348103282,1736314246387,-500.0,0.0002185,3]
[348103283,1736314246396,-696.744,0.0002186,2]
[348103284,1736314246406,-154.88735607,0.00022003,2]
[348103285,1736314246415,-1500.0,0.000221,2]
[348103286,1736314246425,-500.0,0.00022102,3]
[348103287,1736314246435,-506.0,0.00022102,3]
[348103288,1736314246444,-500.0,0.00022102,3]
[348103289,1736314246454,-4833.99,0.00022103,3]
[348103290,1736314246464,-500.0,0.00022103,3]
[348103291,1736314246473,-500.0,0.00022103,3]
[348103292,1736314246483,-500.0,0.00022103,3]
[348103293,1736314246492,-500.0,0.00022103,3]
[348103294,1736314246502,-500.0,0.00022103,3]
[348103295,1736314246512,-500.0,0.00022103,3]
[348103296,1736314246522,-500.0,0.00022103,3]
[348103297,1736314246530,-500.0,0.00022103,3]
[348103298,1736314246539,-1218.49,0.00022104,3]
[348103299,1736314246549,-500.0,0.00022105,3]
[348103300,1736314246558,-500.0,0.00022124,3]
[348103301,1736314246567,-500.0,0.00022124,3]
[348103302,1736314246576,-500.0,0.00022124,3]
[348103303,1736314246585,-500.0,0.00022124,3]
[348103304,1736314246595,-534.70241707,0.00022277,2]
[348103305,1736314246606,-500.0,0.00022281,3]
[348103306,1736314246615,-500.0,0.00022281,3]
[348103307,1736314246625,-154.88735607,0.00022309,2]
[348103308,1736314246634,-500.0,0.00022376,3]
[348103309,1736314246644,-500.0,0.00022376,3]
[348103310,1736314246653,-1571.75,0.00022376,3]
[348103311,1736314246662,-500.0,0.00022376,3]
[348103312,1736314246671,-500.0,0.00022376,3]
[348103313,1736314246681,-500.0,0.00022377,2]
[348103314,1736314246690,-4833.99,0.00022377,3]
[348103315,1736314246699,-1152.37,0.00022377,3]
[348103316,1736314246709,-500.0,0.00022377,3]
[348103317,1736314246718,-500.0,0.00022377,3]
[348103318,1736314246728,-500.0,0.00022377,3]
[348103319,1736314246737,-500.0,0.00022377,3]
[348103320,1736314246746,-500.0,0.00022377,3]
[348103321,1736314246755,-433.87,0.00022377,3]
[348103322,1736314246765,-500.0,0.00022377,3]
[348103323,1736314246774,-500.0,0.00022377,3]
[348103324,1736314246783,-1218.49,0.00022378,3]
[348103325,1736314246793,-500.0,0.00022379,3]
[348103326,1736314246801,-500.0,0.00022398,3]
[348103327,1736314246810,-500.0,0.00022398,3]
[348103328,1736314246819,-500.0,0.00022398,3]
[348103329,1736314246832,-500.0,0.00022398,3]
[348103330,1736314246841,-153.6911881,0.00022466,2]
[348103331,1736314246851,-394.0,0.00022467,2]
[348103332,1736314246860,-154.88735607,0.00022615,2]
[348103333,1736314246870,-500.0,0.0002265,3]
[348103334,1736314246880,-1571.75,0.0002265,3]
[348103335,1736314246889,-500.0,0.0002265,3]
[348103336,1736314246899,-500.0,0.0002265,3]
[348103337,1736314246909,-4833.99,0.00022651,3]
[348103338,1736314246918,-1152.37,0.00022651,3]
[348103339,1736314246926,-500.0,0.00022651,3]
[348103340,1736314246933,-370.54,0.00022651,3]
[348103341,1736314246940,-457.26861269,0.00022651,3]
[348103342,1736314246946,-500.0,0.00022651,3]
[348103343,1736314246956,-633.55,0.00022651,3]
[348103344,1736314246965,-500.0,0.00022651,3]
[348103345,1736314246974,-500.0,0.00022651,3]
[348103346,1736314246983,-1218.49,0.00022652,3]
[348103347,1736314246992,-500.0,0.00022653,3]
[348103348,1736314247001,-514.42,0.00022672,3]
[348103349,1736314247010,-548.77,0.00022672,3]
[348103350,1736314247018,-498.8514932,0.00022672,3]
[348103351,1736314247027,-500.0,0.00022672,3]
[348103352,1736314247036,-500.0,0.0002271,3]
[348103353,1736314247045,-151.0,0.000229,5]
[348103354,1736314247053,-25079.10303162,0.00022921,3]
[348103355,1736314247062,-154.88735607,0.00022921,2]
[348103356,1736314247073,-1571.75,0.00022924,3]
[348103357,1736314247083,-621.14,0.00022924,3]
[348103358,1736314247093,-500.0,0.00022924,3]
[348103359,1736314247102,-4833.99,0.00022925,3]
[348103360,1736314247111,-1152.37,0.00022925,3]
[348103361,1736314247121,-500.0,0.00022925,3]
[348103362,1736314247130,-500.0,0.00022925,3]
[348103363,1736314247139,-500.0,0.00022925,3]
[348103364,1736314247148,-500.0,0.00022925,3]
[348103365,1736314247157,-1218.49,0.00022926,3]
[348103366,1736314247166,-500.0,0.00022927,3]
[348103367,1736314247175,-500.0,0.00022946,3]
[348103368,1736314247183,-1987.0,0.00022995,2]
[348103369,1736314247192,-261.04,0.00023,2]
[348103370,1736314247201,-151.0,0.00023,9]
[348103371,1736314247210,-152.94,0.00023,31]
[348103372,1736314247219,-152.94,0.00023,31]
[348103373,1736314247227,-152.94,0.00023,31]
[348103374,1736314247236,-152.94,0.00023,31]
[348103375,1736314247245,-152.94,0.00023,31]
[348103376,1736314247254,-152.94,0.00023,31]
[348103377,1736314247262,-152.94,0.00023,31]
[348103378,1736314247271,-251.70040335,0.00023,2]
[348103379,1736314247279,-500.0,0.00023005,3]
[348103380,1736314247288,-500.0,0.00023013,3]
[348103381,1736314247299,-500.0,0.00023013,3]
[348103382,1736314247309,-150.2,0.00023014,10]
[348103383,1736314247319,-500.0,0.00023014,10]
[348103384,1736314247332,-276.29194854,0.0002302,2]
[348103385,1736314247341,-4021.04773887,0.0002302,3]
[348103386,1736314247351,-528.66177532,0.0002302,3]
[348103387,1736314247361,-323140.51261168,0.00023021,10]
[348103388,1736314461831,25493.0,0.00025,120]
[348103389,1736314476136,-208.15318286,0.000209,2]
[348103390,1736314476332,-1291.84681714,0.000209,2]
[348103391,1736314476353,-208.15318286,0.00020921,2]
[348103392,1736314476377,-500.0,0.00021006,3]
[348103393,1736314476400,-500.0,0.00021006,3]
[348103394,1736314476423,-336.05370775,0.00021006,3]
[348103395,1736314476444,-300.0,0.00021006,2]
[348103396,1736314476471,-2707.94629225,0.00021006,2]
[348103397,1736314476498,-3241.03,0.00021007,3]
[348103398,1736314476521,-500.0,0.00021007,3]
[348103399,1736314476543,-164.10714724,0.00021007,3]
[348103400,1736314476576,-500.0,0.00021006,2]
[348103401,1736314476704,-190.72753179,0.00021172,3]
[348103402,1736314476808,-589.44,0.0002128,3]
[348103403,1736314476832,-500.0,0.0002128,3]
[348103404,1736314476885,-3241.03,0.00021281,3]
[348103405,1736314477145,-500.0,0.00021282,3]
[348103406,1736314477224,-500.0,0.00021554,3]
[348103407,1736314477248,-2741.03,0.00021555,3]
[348103408,1736314477403,-500.0,0.00021555,3]
[348103409,1736314477483,-500.0,0.00021556,3]
[348103410,1736314477556,-500.0,0.00021828,3]
[348103411,1736314477585,-1444.42843036,0.00021829,3]
[348103412,1736314482934,500.0,0.00021282,3]
[348103413,1736314520053,1336.05370775,0.00021006,3]
[348103414,1736314539499,208.14,0.00025,120]
[348103417,1736314633759,500.0,0.00019972,2]
[348103418,1736314877680,200.0,0.0002,2]
[348103419,1736315005624,202.1937155,0.00020597,2]
[348103420,1736315089205,165.065838,0.00013973,2]
[348103421,1736315206177,-165.583478,0.00020987,2]
[348103422,1736315206199,-5000.0,0.00021,3]
[348103423,1736315206220,-2336.0,0.00021002,2]
[348103424,1736315206242,-500.0,0.00021006,3]
[348103425,1736315206263,-567.31570107,0.00021006,3]
[348103426,1736315206287,-927.68,0.00021006,3]
[348103427,1736315206309,-500.0,0.00021006,3]
[348103428,1736315206332,-996.18307029,0.00021008,3]
[348103429,1736315215477,432.7404465,0.00016,60]
[348103430,1736315227082,-1897.8195456,0.00016,60]
[348103431,1736315234094,-1302.39234971,0.00016,60]
[348103432,1736315252156,-5530.47776753,0.00016,60]
[348103433,1736315329104,10000.0,0.00015,60]
[348103434,1736315348091,-730.92741391,0.00016,60]
[348103435,1736315370137,-105.64247675,0.00016,60]
[348103436,1736315370158,-9766.01060218,0.00016,60]
[348103437,1736315374127,-174.44,0.00016,60]
[348103475,1736315432507,-59.54939782,0.00016,60]
[348103476,1736315432518,-1094.77383719,0.00016,60]
[348103481,1736315432792,-606.84252089,0.00016,60]
[348103538,1736315438751,-8298.38364192,0.00016,60]
[348103540,1736315438760,-1179.13,0.00021008,3]
[348103541,1736315438769,-395.73,0.0002128,3]
[348103543,1736315438780,-500.0,0.0002128,3]
[348103546,1736315438790,-2.34367299,0.00021282,3]
[348103548,1736315438801,-1176.78632701,0.00021282,3]
[348103550,1736315438811,-1455.11,0.00021282,3]
[348103552,1736315438820,-565.58,0.00021282,3]
[348103554,1736315438829,-504.14,0.00021553,3]
[348103556,1736315438839,-300.0,0.00021553,2]
[348103558,1736315438848,-356.21636442,0.00021554,3]
[348103560,1736315438857,-500.0,0.00021554,3]
[348103562,1736315438867,-951.53,0.00021554,3]
[348103564,1736315438876,-1179.13,0.00021556,3]
[348103566,1736315438885,-1455.11,0.00021556,3]
[348103568,1736315438894,-153.0,0.00021631,2]
[348103570,1736315438904,-153.0,0.00021636,2]
[348103572,1736315438913,-154.28,0.00021827,3]
[348103574,1736315438923,-415.75610131,0.00021828,3]
[348103576,1736315438932,-411.23492835,0.00021828,3]
[348103578,1736315438941,-500.0,0.00021828,3]
[348103580,1736315438950,-951.53,0.00021828,3]
[348103582,1736315438959,-1179.13,0.0002183,3]
[348103584,1736315438968,-1455.11,0.0002183,3]
[348103586,1736315438979,-667.96,0.0002187,2]
[348103588,1736315438989,-500.0,0.00021917,2]
[348103590,1736315438999,-500.0,0.00022102,3]
[348103592,1736315439008,-951.53,0.00022102,3]
[348103594,1736315439018,-1179.13,0.00022104,3]
[348103596,1736315439029,-1455.11,0.00022104,3]
[348103598,1736315439038,-225.61382726,0.00022163,3]
[348103600,1736315439047,-500.0,0.00022164,2]
[348103602,1736315439057,-2891.27,0.00022375,3]
[348103604,1736315439067,-500.0,0.00022376,3]
[348103606,1736315439076,-951.53,0.00022376,3]
[348103608,1736315439086,-1179.13,0.00022378,3]
[348103610,1736315439095,-1455.11,0.00022378,3]
[348103612,1736315439104,-4486.83797718,0.00022454,14]
[348103615,1736315439117,-2891.27,0.00022649,3]
[348103617,1736315439126,-500.0,0.0002265,3]
[348103619,1736315439135,-951.53,0.0002265,3]
[348103621,1736315439145,-1179.13,0.00022652,3]
[348103623,1736315439154,-1396.30781676,0.00022652,3]
[348103803,1736315440830,-58.80218324,0.00022652,3]
[348103806,1736315440839,-555.69534648,0.000229,2]
[348103812,1736315440890,-500.0,0.00021555,3]
[348103814,1736315440899,-500.0,0.00021829,3]
[348103816,1736315440909,-500.0,0.00022103,3]
[348103818,1736315440918,-500.0,0.00022377,3]
[348103820,1736315440927,-500.0,0.00022651,3]
[348103822,1736315440937,-36.3340889,0.000229,2]
[348103824,1736315440946,-200.42358275,0.000229,2]
[348103826,1736315440955,-931.11742922,0.00022923,3]
[348104096,1736315443623,-1221.41802771,0.00022923,3]
[348104098,1736315443635,-738.73454307,0.00022923,3]
[348104100,1736315443645,-951.53,0.00022924,3]
[348104102,1736315443654,-514.18061058,0.00022925,2]
[348104104,1736315443663,-500.0,0.00022925,3]
[348104106,1736315443673,-1179.13,0.00022926,3]
[348104108,1736315443683,-1455.11,0.00022926,3]